[Event "84th BRA-ch 2017"]
[Site "Rio de Janeiro"]
[Date "2018.02.06"]
[Round "1.1"]
[White "Toth, Christian Endre"]
[Black "Macedo, Maximo Iack"]
[Result "1-0"]
[ECO "A45"]
[WhiteElo "2348"]
[BlackElo "2358"]
[Annotator "RC"]
[PlyCount "57"]
[EventDate "2018.??.??"]
[EventType "k.o."]
[EventCountry "BRA"]
[SourceTitle "playchess.com"]
[Source "ChessBase"]
[SourceQuality "1"]
[TimeControl "5400+30"]

1. d4 {[%emt 0:00:00]} Nf6 {[%emt 0:00:41]} 2. Bf4 {[%emt 0:00:00]} d5 {[%emt 0:05:13]} 3. e3 {[%emt 0:00:00]} c5 {[%emt 0:00:25]} 4. c3 {[%emt 0:00:01]} Nc6 {[%emt 0:00:19]} 5. Nd2 {[%emt 0:00:05]} e6 {[%emt 0:03:30]} 6. Ngf3 {[%emt 0:00:26]} Bd6 {[%emt 0:00:31]} 7. Bg3 {[%emt 0:00:08]} O-O {[%emt 0:03:39]} 8. Bb5 {[%emt 0:00:18]} a6 {[%emt 0:02:47]} 9. Bxc6 {[%emt 0:01:00]} bxc6 {[%emt 0:00:05]} 10. Qa4 {[%emt 0:00:35]} Rb8 {[%emt 0:14:13]} 11. Bxd6 {[%emt 0:14:57]} Qxd6 {[%emt 0:00:11]} 12. Qa3 {[%emt 0:00:08]} Rb5 {[%emt 0:07:49]} 13. Nb3 {[%emt 0:01:28]} Qb8 {[%emt 0:06:27]} 14. Nxc5 {[%emt 0:07:01]} Rxb2 {[%emt 0:02:10]} 15. O-O {[%emt 0:00:58]} Qb5 {[%emt 0:05:27]} 16. Ne5 {[%emt 0:04:54]} Qe2 {[%emt 0:07:36]} 17. h3 {[%emt 0:10:49]} g5 {[%emt 0:11:36]} 18. Qa4 {[%emt 0:14:29]} Nh5 {[%emt 0:07:15]} 19. Rae1 {[%emt 0:11:25]} Qd2 {[%emt 0:15:02]} 20. Nf3 {[%emt 0:00:16]} Qxc3 {[%emt 0:00:30]} 21. Rc1 {[%emt 0:00:50]} Qb4 {[%emt 0:00:41]} 22. Qxb4 {[%emt 0:00:18]} Rxb4 {[%emt 0:00:05]} 23. Nxg5 {[%emt 0:00:14]} Ng7 {[%emt 0:02:28]} 24. Rb1 {[%emt 0:01:30]} Rc4 {[%emt 0:00:58]} 25. Rfc1 {[%emt 0:01:14]} Rxc1+ {[%emt 0:00:36]} 26. Rxc1 {[%emt 0:00:01]} f6 {[%emt 0:01:30]} 27. Nf3 {[%emt 0:00:07]} Rf7 {[%emt 0:01:23]} 28. Rb1 {[%emt 0:00:10]} Rc7 {[%emt 0:00:28]} 29. Rb6 {[%emt 0:03:12]} 1-0